Workbook

Sheet Sheet1
A2: 永州市消除义务教育大班额重点民生实事项目实施进度公示
A3: （2019年1-11月）
A4: 公示单位：永州市教育局 | M4: 截止日期： | O4: 2019-11-25
A5: 项目名称 | B5: 任务/完成 | C5: 合计 | D5: 市本级 | E5: 冷水滩区 | F5: 零陵区 | G5: 祁阳县 | H5: 东安县 | I5: 双牌县 | J5: 道县 | K5: 江永县 | L5: 江华县 | M5: 宁远县 | N5: 新田县 | O5: 蓝山县 | P5: 金洞管理区 | Q5: 回龙圩管理区 | R5: 经开区
A6: 减少消除义务教育大班额班级数 | B6: 任务数（个） | C6: 2984 | E6: 210 | F6: 357 | G6: 192 | H6: 322 | I6: 58 | J6: 487 | K6: 163 | L6: 117 | M6: 526 | N6: 229 | O6: 299 | P6: 24
B7: 完成数（个） | C7: =SUM(D7:R7) -> 4203 | E7: =VLOOKUP(E5,[1]基层表1!$A$7:$G$19,7,FALSE) -> 558 | F7: =VLOOKUP(F5,[1]基层表1!$A$7:$G$19,7,FALSE) -> 414 | G7: =VLOOKUP(G5,[1]基层表1!$A$7:$G$19,7,FALSE) -> 445 | H7: =VLOOKUP(H5,[1]基层表1!$A$7:$G$19,7,FALSE) -> 337 | I7: =VLOOKUP(I5,[1]基层表1!$A$7:$G$19,7,FALSE) -> 72 | J7: =VLOOKUP(J5,[1]基层表1!$A$7:$G$19,7,FALSE) -> 575 | K7: =VLOOKUP(K5,[1]基层表1!$A$7:$G$19,7,FALSE) -> 202 | L7: =VLOOKUP(L5,[1]基层表1!$A$7:$G$19,7,FALSE) -> 298 | M7: =VLOOKUP(M5,[1]基层表1!$A$7:$G$19,7,FALSE) -> 663 | N7: =VLOOKUP(N5,[1]基层表1!$A$7:$G$19,7,FALSE) -> 287 | O7: =VLOOKUP(O5,[1]基层表1!$A$7:$G$19,7,FALSE) -> 321 | P7: =VLOOKUP(P5,[1]基层表1!$A$7:$G$19,7,FALSE) -> 31
B8: 任务完成率% | C8: =C7/C6*100 -> 140.9 | E8: 265.7 | F8: 116.0 | G8: 231.8 | H8: 104.7 | I8: 124.1 | J8: 118.1 | K8: 123.9 | L8: 254.7 | M8: 126.0 | N8: 125.3 | O8: 107.4 | P8: 129.2
